[Event "Titled Tuesday Blitz August 10 2021"]
[White "Korchmar, Vasiliy"]
[Black "Ibarra Jerez, Jose Carlos"]
[WhiteFideId "24131750"]
[BlackFideId "2226332"]
[WhiteElo "2370"]
[BlackElo "2602"]
[Result "0-1"]
[Round "10"]
[TimeControl "180+1"]
[Date "2021.08.10"]
[WhiteClock "0:00:01"]
[BlackClock "0:00:15"]

1. e4 {[%clk 0:03:00]}  c5 {[%clk 0:02:57]} 2. Nf3 {[%clk 0:03:00]}  e6 {[%clk 0:02:57]} 3. d4 {[%clk 0:02:59]}  cxd4 {[%clk 0:02:57]} 4. Nxd4 {[%clk 0:03:00]}  Bc5 {[%clk 0:02:57]} 5. Nb3 {[%clk 0:02:44]}  Bb6 {[%clk 0:02:54]} 6. Qg4 {[%clk 0:02:37]}  Nf6 {[%clk 0:02:52]} 7. Qh4 {[%clk 0:02:28]}  Nc6 {[%clk 0:02:38]} 8. Bd3 {[%clk 0:02:17]}  Ne5 {[%clk 0:02:35]} 9. O-O {[%clk 0:02:13]}  h6 {[%clk 0:02:19]} 10. Nc3 {[%clk 0:02:06]}  O-O {[%clk 0:02:06]} 11. Qg3 {[%clk 0:01:55]}  Ng6 {[%clk 0:01:59]} 12. Be3 {[%clk 0:01:44]}  d6 {[%clk 0:01:48]} 13. Rad1 {[%clk 0:01:39]}  Nh5 {[%clk 0:01:41]} 14. Qf3 {[%clk 0:01:37]}  Bxe3 {[%clk 0:01:40]} 15. Qxe3 {[%clk 0:01:30]}  Nhf4 {[%clk 0:01:36]} 16. g3 {[%clk 0:01:29]}  Nh3+ {[%clk 0:01:31]} 17. Kg2 {[%clk 0:01:24]}  e5 {[%clk 0:01:31]} 18. Be2 {[%clk 0:00:57]}  Ng5 {[%clk 0:01:26]} 19. Kg1 {[%clk 0:00:46]}  Bh3 {[%clk 0:01:24]} 20. Rfe1 {[%clk 0:00:47]}  a6 {[%clk 0:01:10]} 21. f4 {[%clk 0:00:36]}  Nh7 {[%clk 0:00:56]} 22. f5 {[%clk 0:00:36]}  Ne7 {[%clk 0:00:48]} 23. Rd2 {[%clk 0:00:17]}  Ng5 {[%clk 0:00:45]} 24. Red1 {[%clk 0:00:15]}  Qc7 {[%clk 0:00:43]} 25. Rxd6 {[%clk 0:00:15]}  Bxf5 {[%clk 0:00:42]} 26. exf5 {[%clk 0:00:07]}  Nxf5 {[%clk 0:00:43]} 27. Qb6 {[%clk 0:00:05]}  Qc8 {[%clk 0:00:28]} 28. Bg4 {[%clk 0:00:05]}  h5 {[%clk 0:00:20]} 29. Bxf5 {[%clk 0:00:05]}  Qxf5 {[%clk 0:00:21]} 30. Rf1 {[%clk 0:00:05]}  Qxc2 {[%clk 0:00:18]} 31. Rd2 {[%clk 0:00:03]}  Qh7 {[%clk 0:00:16]} 32. Qxb7 {[%clk 0:00:03]}  h4 {[%clk 0:00:14]} 33. Qg2 {[%clk 0:00:03]}  Rad8 {[%clk 0:00:13]} 34. Rxd8 {[%clk 0:00:03]}  Rxd8 {[%clk 0:00:14]} 35. gxh4 {[%clk 0:00:02]}  Qxh4 {[%clk 0:00:15]} 36. Nc5 {[%clk 0:00:01]}  Qd4+ {[%clk 0:00:15]} 0-1


[Site "https://www.chess.com"]

[Event "Titled Tuesday Blitz August 10 2021"]
[White "Kovalev, Egor"]
[Black "Sychev, Klementy"]
[WhiteFideId "24124117"]
[BlackFideId "4114060"]
[WhiteElo "2253"]
[BlackElo "2615"]
[Result "1/2-1/2"]
[Round "10"]
[TimeControl "180+1"]
[Date "2021.08.10"]
[WhiteClock "0:00:07"]
[BlackClock "0:00:08"]

1. e4 {[%clk 0:02:52]}  c5 {[%clk 0:02:44]} 2. Nf3 {[%clk 0:02:50]}  d6 {[%clk 0:02:44]} 3. d4 {[%clk 0:02:49]}  cxd4 {[%clk 0:02:45]} 4. Nxd4 {[%clk 0:02:49]}  Nf6 {[%clk 0:02:45]} 5. Nc3 {[%clk 0:02:48]}  g6 {[%clk 0:02:46]} 6. f3 {[%clk 0:02:47]}  Bg7 {[%clk 0:02:46]} 7. Be3 {[%clk 0:02:47]}  O-O {[%clk 0:02:46]} 8. Bc4 {[%clk 0:02:47]}  Nc6 {[%clk 0:02:45]} 9. Bb3 {[%clk 0:02:45]}  Bd7 {[%clk 0:02:44]} 10. Qd2 {[%clk 0:02:45]}  Nxd4 {[%clk 0:02:43]} 11. Bxd4 {[%clk 0:02:44]}  b5 {[%clk 0:02:43]} 12. a4 {[%clk 0:02:40]}  bxa4 {[%clk 0:02:38]} 13. Bxa4 {[%clk 0:02:41]}  Bxa4 {[%clk 0:02:25]} 14. Rxa4 {[%clk 0:02:42]}  Qb8 {[%clk 0:02:23]} 15. O-O {[%clk 0:02:36]}  Rc8 {[%clk 0:02:16]} 16. Rfa1 {[%clk 0:02:28]}  a5 {[%clk 0:01:35]} 17. Ne2 {[%clk 0:02:03]}  Qc7 {[%clk 0:01:00]} 18. Bc3 {[%clk 0:01:46]}  Nd7 {[%clk 0:00:58]} 19. Rxa5 {[%clk 0:01:41]}  Bxc3 {[%clk 0:00:46]} 20. Qxc3 {[%clk 0:01:29]}  Qb6+ {[%clk 0:00:45]} 21. Kf1 {[%clk 0:01:12]}  Rab8 {[%clk 0:00:38]} 22. Qd4 {[%clk 0:00:56]}  Qxb2 {[%clk 0:00:34]} 23. Qxb2 {[%clk 0:00:55]}  Rxb2 {[%clk 0:00:35]} 24. Ra8 {[%clk 0:00:56]}  Rxc2 {[%clk 0:00:23]} 25. Rxc8+ {[%clk 0:00:54]}  Rxc8 {[%clk 0:00:22]} 26. Ra7 {[%clk 0:00:55]}  Rd8 {[%clk 0:00:15]} 27. Nd4 {[%clk 0:00:55]}  Kf8 {[%clk 0:00:15]} 28. Nc6 {[%clk 0:00:27]}  Rc8 {[%clk 0:00:14]} 29. Rxd7 {[%clk 0:00:28]}  Rxc6 {[%clk 0:00:14]} 30. Kf2 {[%clk 0:00:27]}  g5 {[%clk 0:00:14]} 31. Kg3 {[%clk 0:00:26]}  Rc2 {[%clk 0:00:13]} 32. h4 {[%clk 0:00:15]}  gxh4+ {[%clk 0:00:12]} 33. Kh3 {[%clk 0:00:16]}  Rd2 {[%clk 0:00:08]} 34. Rc7 {[%clk 0:00:16]}  e6 {[%clk 0:00:06]} 35. Rd7 {[%clk 0:00:14]}  Kg7 {[%clk 0:00:06]} 36. Kxh4 {[%clk 0:00:08]}  Rxg2 {[%clk 0:00:05]} 37. Rxd6 {[%clk 0:00:09]}  Kf6 {[%clk 0:00:05]} 38. f4 {[%clk 0:00:07]}  Re2 {[%clk 0:00:04]} 39. e5+ {[%clk 0:00:02]}  Kf5 {[%clk 0:00:05]} 40. Rd7 {[%clk 0:00:03]}  Kxf4 {[%clk 0:00:05]} 41. Rxf7+ {[%clk 0:00:03]}  Kxe5 {[%clk 0:00:05]} 42. Kg3 {[%clk 0:00:03]}  Re3+ {[%clk 0:00:05]} 43. Kg2 {[%clk 0:00:03]}  Re4 {[%clk 0:00:02]} 44. Rxh7 {[%clk 0:00:03]}  Rf4 {[%clk 0:00:02]} 45. Rd7 {[%clk 0:00:02]}  Ke4 {[%clk 0:00:02]} 46. Ra7 {[%clk 0:00:02]}  e5 {[%clk 0:00:02]} 47. Ra4+ {[%clk 0:00:02]}  Kd5 {[%clk 0:00:01]} 48. Rxf4 {[%clk 0:00:02]}  exf4 {[%clk 0:00:02]} 49. Kf3 {[%clk 0:00:02]}  Ke5 {[%clk 0:00:02]} 50. Kf2 {[%clk 0:00:03]}  Ke4 {[%clk 0:00:03]} 51. Ke2 {[%clk 0:00:04]}  f3+ {[%clk 0:00:04]} 52. Kf2 {[%clk 0:00:04]}  Kf4 {[%clk 0:00:05]} 53. Kf1 {[%clk 0:00:05]}  Ke3 {[%clk 0:00:05]} 54. Ke1 {[%clk 0:00:06]}  Ke4 {[%clk 0:00:06]} 55. Kf2 {[%clk 0:00:06]}  Kf4 {[%clk 0:00:07]} 56. Kf1 {[%clk 0:00:06]}  Kg4 {[%clk 0:00:08]} 57. Kf2 {[%clk 0:00:07]}  Kf4 {[%clk 0:00:08]} 1/2-1/2


[Site "https://www.chess.com"]

[Event "Titled Tuesday Blitz August 10 2021"]
[White "Lashkin, Jegor"]
[Black "Rodriguez Hernandez, Luis Daniel"]
[WhiteFideId "13907808"]
[BlackFideId "3506770"]
[WhiteElo "2293"]
[BlackElo "2133"]
[Result "1/2-1/2"]
[Round "10"]
[TimeControl "180+1"]
[Date "2021.08.10"]
[WhiteClock "0:00:06"]
[BlackClock "0:00:11"]

1. d4 {[%clk 0:03:00]}  Nf6 {[%clk 0:02:56]} 2. c4 {[%clk 0:03:01]}  g6 {[%clk 0:02:56]} 3. Nc3 {[%clk 0:03:01]}  Bg7 {[%clk 0:02:57]} 4. e4 {[%clk 0:03:01]}  O-O {[%clk 0:02:58]} 5. Be2 {[%clk 0:03:01]}  d6 {[%clk 0:02:58]} 6. Nf3 {[%clk 0:03:01]}  e5 {[%clk 0:02:58]} 7. Be3 {[%clk 0:03:02]}  Ng4 {[%clk 0:02:58]} 8. Bg5 {[%clk 0:03:01]}  f6 {[%clk 0:02:58]} 9. Bc1 {[%clk 0:03:01]}  Nc6 {[%clk 0:02:46]} 10. O-O {[%clk 0:03:00]}  Bd7 {[%clk 0:02:37]} 11. h3 {[%clk 0:02:56]}  Nh6 {[%clk 0:02:38]} 12. Be3 {[%clk 0:02:56]}  f5 {[%clk 0:02:07]} 13. Bg5 {[%clk 0:02:52]}  Qe8 {[%clk 0:01:39]} 14. dxe5 {[%clk 0:02:49]}  fxe4 {[%clk 0:01:33]} 15. Nxe4 {[%clk 0:02:47]}  Nxe5 {[%clk 0:01:29]} 16. Qd2 {[%clk 0:02:32]}  Bc6 {[%clk 0:01:08]} 17. Bxh6 {[%clk 0:01:59]}  Bxe4 {[%clk 0:01:03]} 18. Bxg7 {[%clk 0:01:48]}  Kxg7 {[%clk 0:00:58]} 19. Nd4 {[%clk 0:01:39]}  a6 {[%clk 0:00:35]} 20. Rae1 {[%clk 0:01:36]}  c5 {[%clk 0:00:34]} 21. Nc2 {[%clk 0:01:29]}  Qc6 {[%clk 0:00:34]} 22. Ne3 {[%clk 0:01:28]}  b5 {[%clk 0:00:28]} 23. f3 {[%clk 0:01:20]}  Bf5 {[%clk 0:00:27]} 24. f4 {[%clk 0:01:16]}  Nxc4 {[%clk 0:00:27]} 25. Nxc4 {[%clk 0:01:16]}  bxc4 {[%clk 0:00:28]} 26. Bf3 {[%clk 0:01:16]}  d5 {[%clk 0:00:20]} 27. Bxd5 {[%clk 0:01:13]}  Rad8 {[%clk 0:00:21]} 28. Qc3+ {[%clk 0:01:04]}  Qf6 {[%clk 0:00:22]} 29. Bxc4 {[%clk 0:00:50]}  Qxc3 {[%clk 0:00:17]} 30. bxc3 {[%clk 0:00:51]}  Bd3 {[%clk 0:00:17]} 31. Re7+ {[%clk 0:00:43]}  Kf6 {[%clk 0:00:18]} 32. Re6+ {[%clk 0:00:40]}  Kg7 {[%clk 0:00:17]} 33. Bxd3 {[%clk 0:00:37]}  Rxd3 {[%clk 0:00:18]} 34. Rxa6 {[%clk 0:00:28]}  Rxc3 {[%clk 0:00:18]} 35. Rf2 {[%clk 0:00:28]}  Rf7 {[%clk 0:00:17]} 36. Kh2 {[%clk 0:00:27]}  h5 {[%clk 0:00:17]} 37. g3 {[%clk 0:00:27]}  c4 {[%clk 0:00:15]} 38. Rc6 {[%clk 0:00:27]}  Ra7 {[%clk 0:00:14]} 39. g4 {[%clk 0:00:23]}  hxg4 {[%clk 0:00:13]} 40. hxg4 {[%clk 0:00:24]}  Rca3 {[%clk 0:00:14]} 41. Rxc4 {[%clk 0:00:19]}  Rxa2 {[%clk 0:00:14]} 42. Rxa2 {[%clk 0:00:16]}  Rxa2+ {[%clk 0:00:15]} 43. Kg3 {[%clk 0:00:16]}  Ra6 {[%clk 0:00:13]} 44. Rc7+ {[%clk 0:00:15]}  Kf6 {[%clk 0:00:12]} 45. Kh4 {[%clk 0:00:14]}  g5+ {[%clk 0:00:11]} 46. fxg5+ {[%clk 0:00:08]}  Kg6 {[%clk 0:00:12]} 47. Rb7 {[%clk 0:00:07]}  Ra1 {[%clk 0:00:10]} 48. Rb6+ {[%clk 0:00:07]}  Kg7 {[%clk 0:00:11]} 49. g6 {[%clk 0:00:06]}  Rc1 {[%clk 0:00:11]} 50. Kh5 {[%clk 0:00:04]}  Rc5+ {[%clk 0:00:11]} 51. g5 {[%clk 0:00:05]}  Rc7 {[%clk 0:00:11]} 52. Rf6 {[%clk 0:00:05]}  Rc1 {[%clk 0:00:10]} 53. Rf7+ {[%clk 0:00:05]}  Kg8 {[%clk 0:00:11]} 54. Rf4 {[%clk 0:00:05]}  Rh1+ {[%clk 0:00:10]} 55. Kg4 {[%clk 0:00:05]}  Rg1+ {[%clk 0:00:09]} 56. Kf5 {[%clk 0:00:06]}  Rc1 {[%clk 0:00:10]} 57. Rd4 {[%clk 0:00:06]}  Rc5+ {[%clk 0:00:09]} 58. Kf6 {[%clk 0:00:06]}  Rc6+ {[%clk 0:00:10]} 59. Kf5 {[%clk 0:00:06]}  Rc5+ {[%clk 0:00:10]} 60. Kg4 {[%clk 0:00:07]}  Kg7 {[%clk 0:00:09]} 61. Kh5 {[%clk 0:00:07]}  Rc7 {[%clk 0:00:07]} 62. Rf4 {[%clk 0:00:07]}  Rc1 {[%clk 0:00:06]} 63. Rf7+ {[%clk 0:00:07]}  Kg8 {[%clk 0:00:07]} 64. Ra7 {[%clk 0:00:06]}  Rh1+ {[%clk 0:00:07]} 65. Kg4 {[%clk 0:00:07]}  Rg1+ {[%clk 0:00:08]} 66. Kf5 {[%clk 0:00:07]}  Rf1+ {[%clk 0:00:08]} 67. Ke4 {[%clk 0:00:07]}  Re1+ {[%clk 0:00:09]} 68. Kf3 {[%clk 0:00:07]}  Rg1 {[%clk 0:00:09]} 69. Kf4 {[%clk 0:00:07]}  Rf1+ {[%clk 0:00:09]} 70. Ke3 {[%clk 0:00:06]}  Rg1 {[%clk 0:00:09]} 71. Ra5 {[%clk 0:00:05]}  Kg7 {[%clk 0:00:09]} 72. Kf2 {[%clk 0:00:05]}  Rb1 {[%clk 0:00:09]} 73. Ra6 {[%clk 0:00:04]}  Rb5 {[%clk 0:00:09]} 74. Kf3 {[%clk 0:00:04]}  Rxg5 {[%clk 0:00:10]} 75. Kf4 {[%clk 0:00:05]}  Rxg6 {[%clk 0:00:10]} 76. Rxg6+ {[%clk 0:00:06]}  Kxg6 {[%clk 0:00:11]} 1/2-1/2


[Site "https://www.chess.com"]

[Event "Titled Tuesday Blitz August 10 2021"]
[White "Le, Tuan Minh"]
[Black "Grischuk, Alexander"]
[WhiteFideId "12401153"]
[BlackFideId "4126025"]
[WhiteElo "2450"]
[BlackElo "2777"]
[Result "0-1"]
[Round "10"]
[TimeControl "180+1"]
[Date "2021.08.10"]
[WhiteClock "0:00:02"]
[BlackClock "0:00:43"]

1. d4 {[%clk 0:03:00]}  Nf6 {[%clk 0:02:59]} 2. Nf3 {[%clk 0:03:01]}  d6 {[%clk 0:02:59]} 3. Bg5 {[%clk 0:02:59]}  Nbd7 {[%clk 0:02:59]} 4. Nbd2 {[%clk 0:02:59]}  e5 {[%clk 0:02:57]} 5. c3 {[%clk 0:02:57]}  Be7 {[%clk 0:02:57]} 6. e4 {[%clk 0:02:57]}  h6 {[%clk 0:02:54]} 7. Bh4 {[%clk 0:02:57]}  exd4 {[%clk 0:02:52]} 8. cxd4 {[%clk 0:02:56]}  Nxe4 {[%clk 0:02:51]} 9. Nxe4 {[%clk 0:02:32]}  Bxh4 {[%clk 0:02:51]} 10. Bd3 {[%clk 0:02:33]}  O-O {[%clk 0:02:50]} 11. O-O {[%clk 0:02:33]}  Bf6 {[%clk 0:02:47]} 12. Re1 {[%clk 0:02:31]}  Nb6 {[%clk 0:02:42]} 13. Rc1 {[%clk 0:02:21]}  c6 {[%clk 0:02:40]} 14. Qd2 {[%clk 0:02:18]}  Bf5 {[%clk 0:02:35]} 15. Qf4 {[%clk 0:02:18]}  Bxe4 {[%clk 0:02:34]} 16. Qxe4 {[%clk 0:02:13]}  g6 {[%clk 0:02:34]} 17. h4 {[%clk 0:02:12]}  h5 {[%clk 0:01:43]} 18. Qf4 {[%clk 0:02:00]}  Kg7 {[%clk 0:01:36]} 19. Qg3 {[%clk 0:01:42]}  Qd7 {[%clk 0:01:31]} 20. Ng5 {[%clk 0:01:33]}  Bxg5 {[%clk 0:01:27]} 21. hxg5 {[%clk 0:01:24]}  Rae8 {[%clk 0:01:15]} 22. Qf3 {[%clk 0:01:24]}  Qd8 {[%clk 0:01:12]} 23. Qg3 {[%clk 0:01:18]}  Nd5 {[%clk 0:01:08]} 24. Bc4 {[%clk 0:01:18]}  Nc7 {[%clk 0:00:59]} 25. Bb3 {[%clk 0:00:19]}  d5 {[%clk 0:00:55]} 26. Re5 {[%clk 0:00:19]}  Rxe5 {[%clk 0:00:53]} 27. Qxe5+ {[%clk 0:00:17]}  Kg8 {[%clk 0:00:53]} 28. Rd1 {[%clk 0:00:08]}  Re8 {[%clk 0:00:48]} 29. Qg3 {[%clk 0:00:05]}  Ne6 {[%clk 0:00:47]} 30. f4 {[%clk 0:00:02]}  Qb8 {[%clk 0:00:43]} 0-1


[Site "https://www.chess.com"]

[Event "Titled Tuesday Blitz August 10 2021"]
[White "Mikhailovsky, Vladimir"]
[Black "Urazayev, Arystanbek"]
[WhiteFideId "34105414"]
[BlackFideId "13709810"]
[WhiteElo "2315"]
[BlackElo "2321"]
[Result "0-1"]
[Round "10"]
[TimeControl "180+1"]
[Date "2021.08.10"]
[WhiteClock "0:00:02"]
[BlackClock "0:01:46"]

1. c4 {[%clk 0:02:57]}  e6 {[%clk 0:03:00]} 2. Nf3 {[%clk 0:02:53]}  d5 {[%clk 0:03:00]} 3. g3 {[%clk 0:02:54]}  dxc4 {[%clk 0:03:00]} 4. Bg2 {[%clk 0:02:54]}  Nd7 {[%clk 0:03:00]} 5. O-O {[%clk 0:02:54]}  a6 {[%clk 0:03:01]} 6. Qc2 {[%clk 0:02:52]}  Ngf6 {[%clk 0:03:01]} 7. Qxc4 {[%clk 0:02:51]}  b5 {[%clk 0:03:01]} 8. Qc2 {[%clk 0:02:50]}  Bb7 {[%clk 0:03:01]} 9. d4 {[%clk 0:02:46]}  c5 {[%clk 0:03:02]} 10. Rd1 {[%clk 0:02:45]}  Qb6 {[%clk 0:03:02]} 11. Nc3 {[%clk 0:02:30]}  Rc8 {[%clk 0:03:02]} 12. Be3 {[%clk 0:02:21]}  cxd4 {[%clk 0:02:58]} 13. Nxd4 {[%clk 0:02:08]}  Bxg2 {[%clk 0:02:58]} 14. Kxg2 {[%clk 0:01:56]}  Qb7+ {[%clk 0:02:49]} 15. Nf3 {[%clk 0:01:40]}  Bc5 {[%clk 0:02:37]} 16. Bxc5 {[%clk 0:01:35]}  Nxc5 {[%clk 0:02:38]} 17. Qd2 {[%clk 0:01:01]}  O-O {[%clk 0:02:37]} 18. Rac1 {[%clk 0:01:02]}  h6 {[%clk 0:02:31]} 19. h3 {[%clk 0:01:00]}  b4 {[%clk 0:02:31]} 20. Nb1 {[%clk 0:00:54]}  a5 {[%clk 0:02:31]} 21. Qd4 {[%clk 0:00:47]}  Nce4 {[%clk 0:02:31]} 22. Rxc8 {[%clk 0:00:41]}  Rxc8 {[%clk 0:02:31]} 23. Nbd2 {[%clk 0:00:42]}  Rc2 {[%clk 0:02:10]} 24. Nxe4 {[%clk 0:00:27]}  Qxe4 {[%clk 0:02:09]} 25. Qd8+ {[%clk 0:00:28]}  Kh7 {[%clk 0:02:09]} 26. Rd2 {[%clk 0:00:29]}  Nd5 {[%clk 0:01:51]} 27. Rxc2 {[%clk 0:00:26]}  Qxc2 {[%clk 0:01:52]} 28. Qd7 {[%clk 0:00:11]}  Qxe2 {[%clk 0:01:47]} 29. Qxf7 {[%clk 0:00:02]}  Ne3+ {[%clk 0:01:46]} 30. Kh1 {[%clk 0:00:02]}  Qf1+ {[%clk 0:01:45]} 31. Ng1 {[%clk 0:00:02]}  Qg2# {[%clk 0:01:46]} 0-1


[Site "https://www.chess.com"]

[Event "Titled Tuesday Blitz August 10 2021"]
[White "Moroni, Luca Jr"]
[Black "Gusarov, Grigory"]
[WhiteFideId "865834"]
[BlackFideId "24102172"]
[WhiteElo "2491"]
[BlackElo "2247"]
[Result "0-1"]
[Round "10"]
[TimeControl "180+1"]
[Date "2021.08.10"]
[WhiteClock "0:00:03"]
[BlackClock "0:00:18"]

1. d4 {[%clk 0:03:00]}  c6 {[%clk 0:02:59]} 2. Bf4 {[%clk 0:02:58]}  Qb6 {[%clk 0:02:58]} 3. b3 {[%clk 0:02:54]}  d5 {[%clk 0:02:57]} 4. e3 {[%clk 0:02:54]}  Bf5 {[%clk 0:02:57]} 5. Nf3 {[%clk 0:02:53]}  e6 {[%clk 0:02:57]} 6. Nbd2 {[%clk 0:02:53]}  Nd7 {[%clk 0:02:57]} 7. c4 {[%clk 0:02:53]}  Bb4 {[%clk 0:02:56]} 8. Be2 {[%clk 0:02:52]}  Ngf6 {[%clk 0:02:52]} 9. O-O {[%clk 0:02:39]}  Bc3 {[%clk 0:02:42]} 10. Rc1 {[%clk 0:02:37]}  Bb2 {[%clk 0:02:42]} 11. c5 {[%clk 0:02:34]}  Qa5 {[%clk 0:02:26]} 12. Bd6 {[%clk 0:01:57]}  Bxc1 {[%clk 0:02:23]} 13. Qxc1 {[%clk 0:01:58]}  Ne4 {[%clk 0:02:22]} 14. Nxe4 {[%clk 0:01:57]}  Bxe4 {[%clk 0:02:22]} 15. Qb2 {[%clk 0:01:40]}  a6 {[%clk 0:02:19]} 16. Nd2 {[%clk 0:01:27]}  Bg6 {[%clk 0:02:17]} 17. f3 {[%clk 0:01:23]}  f6 {[%clk 0:02:09]} 18. b4 {[%clk 0:01:18]}  Qd8 {[%clk 0:02:00]} 19. a4 {[%clk 0:01:18]}  Kf7 {[%clk 0:01:55]} 20. e4 {[%clk 0:01:15]}  Re8 {[%clk 0:01:52]} 21. Qb3 {[%clk 0:00:57]}  Kg8 {[%clk 0:01:50]} 22. f4 {[%clk 0:00:54]}  Bxe4 {[%clk 0:01:40]} 23. Nxe4 {[%clk 0:00:51]}  dxe4 {[%clk 0:01:41]} 24. f5 {[%clk 0:00:47]}  Nf8 {[%clk 0:01:40]} 25. Bc4 {[%clk 0:00:43]}  Kh8 {[%clk 0:01:33]} 26. fxe6 {[%clk 0:00:41]}  Ng6 {[%clk 0:01:30]} 27. Qe3 {[%clk 0:00:37]}  b5 {[%clk 0:01:19]} 28. Bb3 {[%clk 0:00:25]}  bxa4 {[%clk 0:01:19]} 29. Bxa4 {[%clk 0:00:25]}  Rxe6 {[%clk 0:01:19]} 30. Bxc6 {[%clk 0:00:25]}  Rc8 {[%clk 0:01:18]} 31. d5 {[%clk 0:00:23]}  Rxd6 {[%clk 0:01:13]} 32. cxd6 {[%clk 0:00:24]}  Qxd6 {[%clk 0:01:14]} 33. Qxe4 {[%clk 0:00:24]}  Ne5 {[%clk 0:01:13]} 34. Rc1 {[%clk 0:00:18]}  h6 {[%clk 0:01:10]} 35. h3 {[%clk 0:00:17]}  Rb8 {[%clk 0:01:09]} 36. Rb1 {[%clk 0:00:11]}  Rb6 {[%clk 0:01:08]} 37. Ba4 {[%clk 0:00:10]}  Qb8 {[%clk 0:00:58]} 38. Bc2 {[%clk 0:00:10]}  Kg8 {[%clk 0:00:53]} 39. Ra1 {[%clk 0:00:05]}  Rxb4 {[%clk 0:00:52]} 40. Qh7+ {[%clk 0:00:05]}  Kf7 {[%clk 0:00:52]} 41. Rxa6 {[%clk 0:00:06]}  Qb7 {[%clk 0:00:48]} 42. Ra1 {[%clk 0:00:04]}  Qb6+ {[%clk 0:00:47]} 43. Kh1 {[%clk 0:00:04]}  Rb2 {[%clk 0:00:45]} 44. Qf5 {[%clk 0:00:04]}  g6 {[%clk 0:00:39]} 45. Qe4 {[%clk 0:00:03]}  h5 {[%clk 0:00:38]} 46. Rf1 {[%clk 0:00:02]}  Kg7 {[%clk 0:00:37]} 47. d6 {[%clk 0:00:01]}  Qxd6 {[%clk 0:00:35]} 48. Bb1 {[%clk 0:00:01]}  Rd2 {[%clk 0:00:34]} 49. Qf4 {[%clk 0:00:02]}  Rd1 {[%clk 0:00:34]} 50. Qf3 {[%clk 0:00:02]}  Rxf1+ {[%clk 0:00:33]} 51. Qxf1 {[%clk 0:00:02]}  Qd4 {[%clk 0:00:33]} 52. Qe2 {[%clk 0:00:02]}  h4 {[%clk 0:00:33]} 53. Qf1 {[%clk 0:00:02]}  Qe3 {[%clk 0:00:32]} 54. Qd1 {[%clk 0:00:03]}  Qf2 {[%clk 0:00:30]} 55. Qc1 {[%clk 0:00:03]}  Qb6 {[%clk 0:00:27]} 56. Qc2 {[%clk 0:00:02]}  Qd6 {[%clk 0:00:23]} 57. Qc1 {[%clk 0:00:02]}  Nf7 {[%clk 0:00:20]} 58. Qc2 {[%clk 0:00:03]}  f5 {[%clk 0:00:20]} 59. Qc3+ {[%clk 0:00:03]}  Qe5 {[%clk 0:00:20]} 60. Qc1 {[%clk 0:00:04]}  Nd6 {[%clk 0:00:20]} 61. Ba2 {[%clk 0:00:04]}  Kf6 {[%clk 0:00:20]} 62. Qc6 {[%clk 0:00:04]}  Qe1+ {[%clk 0:00:20]} 63. Kh2 {[%clk 0:00:05]}  Qe5+ {[%clk 0:00:21]} 64. Kh1 {[%clk 0:00:05]}  Qa1+ {[%clk 0:00:21]} 65. Kh2 {[%clk 0:00:05]}  Qxa2 {[%clk 0:00:21]} 66. Qxd6+ {[%clk 0:00:05]}  Qe6 {[%clk 0:00:21]} 67. Qf8+ {[%clk 0:00:05]}  Qf7 {[%clk 0:00:20]} 68. Qh8+ {[%clk 0:00:05]}  Kg5 {[%clk 0:00:20]} 69. Qd8+ {[%clk 0:00:05]}  Qf6 {[%clk 0:00:20]} 70. Qd2+ {[%clk 0:00:05]}  Kh5 {[%clk 0:00:20]} 71. Qf4 {[%clk 0:00:05]}  g5 {[%clk 0:00:20]} 72. Qb8 {[%clk 0:00:05]}  Kg6 {[%clk 0:00:21]} 73. Qe8+ {[%clk 0:00:05]}  Kh6 {[%clk 0:00:21]} 74. Qg8 {[%clk 0:00:05]}  Qd6+ {[%clk 0:00:21]} 75. Kh1 {[%clk 0:00:04]}  Qf6 {[%clk 0:00:21]} 76. Kh2 {[%clk 0:00:05]}  f4 {[%clk 0:00:21]} 77. Qe8 {[%clk 0:00:04]}  f3 {[%clk 0:00:21]} 78. gxf3 {[%clk 0:00:05]}  Qf4+ {[%clk 0:00:21]} 79. Kg2 {[%clk 0:00:05]}  Qg3+ {[%clk 0:00:21]} 80. Kf1 {[%clk 0:00:05]}  Qxf3+ {[%clk 0:00:22]} 81. Ke1 {[%clk 0:00:05]}  Qg3+ {[%clk 0:00:21]} 82. Ke2 {[%clk 0:00:04]}  Qg2+ {[%clk 0:00:21]} 83. Ke1 {[%clk 0:00:03]}  Qg3+ {[%clk 0:00:17]} 84. Ke2 {[%clk 0:00:03]}  Qg2+ {[%clk 0:00:16]} 85. Ke1 {[%clk 0:00:03]}  Qxh3 {[%clk 0:00:16]} 86. Qh8+ {[%clk 0:00:03]}  Kg6 {[%clk 0:00:16]} 87. Qg8+ {[%clk 0:00:04]}  Kh5 {[%clk 0:00:17]} 88. Qh7+ {[%clk 0:00:03]}  Kg4 {[%clk 0:00:17]} 89. Qe4+ {[%clk 0:00:03]}  Kg3 {[%clk 0:00:18]} 90. Qe3+ {[%clk 0:00:03]}  Kh2 {[%clk 0:00:18]} 91. Qe7 {[%clk 0:00:01]}  Qg3+ {[%clk 0:00:18]} 92. Kf1 {[%clk 0:00:01]}  Qg2+ {[%clk 0:00:18]} 93. Ke1 {[%clk 0:00:01]}  h3 {[%clk 0:00:18]} 94. Qf6 {[%clk 0:00:01]}  g4 {[%clk 0:00:17]} 95. Qf5 {[%clk 0:00:01]}  g3 {[%clk 0:00:18]} 96. Qe5 {[%clk 0:00:01]}  Qf2+ {[%clk 0:00:18]} 97. Kd1 {[%clk 0:00:01]}  Kg1 {[%clk 0:00:18]} 98. Qd6 {[%clk 0:00:01]}  h2 {[%clk 0:00:18]} 99. Qe5 {[%clk 0:00:02]}  h1=Q {[%clk 0:00:18]} 100. Qh5 {[%clk 0:00:02]}  Qxh5+ {[%clk 0:00:18]} 101. Kc1 {[%clk 0:00:03]}  Qhc5+ {[%clk 0:00:18]} 0-1


[Site "https://www.chess.com"]